lending/lending_fUSD_20260310
["ID","MTS","AMOUNT","RATE_DAILY","PERIOD"]
[408145465,1773173442352,-1000.0,0.00015221,2]
[408145466,1773173442361,-1000.0,0.00015221,2]
[408145467,1773173442370,-558.85528432,0.00015221,2]
[408145468,1773173442379,-1000.0,0.00015221,2]
[408145469,1773173442388,-575.55800162,0.00015221,2]
[408145470,1773173442398,-1000.92260886,0.00015221,2]
[408145471,1773173442407,-1000.0,0.00015221,2]
[408145472,1773173442416,-1000.0,0.00015221,2]
[408145473,1773173442425,-605.45252019,0.00015221,2]
[408145474,1773173442434,-15450.50588442,0.00015255,2]
[408145475,1773173442444,-5943.01687584,0.00015271,2]
[408145476,1773173442453,-500.0,0.00015395,2]
[408145477,1773173442462,-2000.0,0.00015446,2]
[408145478,1773173442471,-6163.28143983,0.0001549,2]
[408145479,1773173442481,-255.0,0.00015511,2]
[408145480,1773173442491,-156.93,0.0001556,2]
[408145481,1773173442500,-500.0,0.00015574,2]
[408145482,1773173442510,-5000.0,0.00015574,2]
[408145483,1773173442521,-250.0,0.00015574,2]
[408145484,1773173442531,-5000.0,0.00015574,2]
[408145485,1773173442540,-600.0,0.00015574,2]
[408145486,1773173442549,-5000.0,0.00015574,2]
[408145487,1773173442558,-1600.0,0.00015598,2]
[408145488,1773173442567,-15450.50588442,0.00015633,2]
[408145489,1773173442576,-314.49272081,0.0001566,2]
[408145490,1773173442586,-1000.0,0.00015668,2]
[408145491,1773173442595,-637.10281941,0.00015668,2]
[408145492,1773173442605,-1500.0,0.00015668,2]
[408145493,1773173442614,-1500.0,0.00015668,2]
[408145494,1773173442623,-1500.0,0.00015668,2]
[408145495,1773173442633,-1500.0,0.00015668,2]
[408145496,1773173442646,-1500.0,0.00015668,2]
[408145497,1773173442655,-500.0,0.00015668,2]
[408145498,1773173442665,-500.0,0.00015708,2]
[408145499,1773173442674,-1500.0,0.00015768,2]
[408145500,1773173442686,-1500.0,0.00015768,2]
[408145501,1773173442696,-1545.31641049,0.00015768,2]
[408145502,1773173442705,-1500.0,0.00015768,2]
[408145503,1773173442715,-1500.0,0.00015768,2]
[408145504,1773173442725,-1500.0,0.00015768,2]
[408145505,1773173442736,-1500.0,0.00015768,2]
[408145506,1773173442745,-1503.33475526,0.00015768,2]
[408145507,1773173442754,-1500.0,0.00015768,2]
[408145508,1773173442764,-795.45927389,0.00015768,2]
[408145509,1773173442773,-1500.0,0.00015768,2]
[408145510,1773173442782,-1500.0,0.00015768,2]
[408145511,1773173442791,-1500.0,0.00015768,2]
[408145512,1773173442800,-1500.0,0.00015768,2]
[408145513,1773173442810,-1500.0,0.00015768,2]
[408145514,1773173442819,-1500.0,0.00015768,2]
[408145515,1773173442828,-409.60365407,0.00015768,2]
[408145516,1773173442837,-1500.0,0.00015768,2]
[408145517,1773173442846,-1500.0,0.00015768,2]
[408145518,1773173442855,-1500.0,0.00015768,2]
[408145519,1773173442864,-1500.0,0.00015768,2]
[408145520,1773173442874,-1500.0,0.00015768,2]
[408145521,1773173442883,-1500.0,0.00015768,2]
[408145522,1773173442892,-1500.0,0.00015768,2]
[408145523,1773173442901,-1500.0,0.00015768,2]
[408145524,1773173442911,-1500.0,0.00015768,2]
[408145525,1773173442922,-1500.0,0.00015768,2]
[408145526,1773173442931,-1500.0,0.00015768,2]
[408145527,1773173442941,-2000.0,0.0001589,2]
[408145528,1773173442950,-500.0,0.00015942,2]
[408145529,1773173442959,-6163.28143983,0.00015985,2]
[408145530,1773173442968,-576.89,0.00015999,2]
[408145531,1773173442978,-500.0,0.00015999,2]
[408145532,1773173442987,-282.70084494,0.00016,5]
[408145533,1773173442996,-15450.50588442,0.00016011,2]
[408145534,1773173443005,-5943.01687584,0.00016042,2]
[408145535,1773173443014,-156.93,0.00016046,2]
[408145536,1773173443023,-299.99,0.00016116,4]
[408145537,1773173443033,-14673.15,0.00016116,2]
[408145538,1773173443043,-3715.38,0.00016116,2]
[408145539,1773173443052,-7995.06,0.00016116,2]
[408145540,1773173443061,-869.83,0.00016116,2]
[408145541,1773173443072,-150.99,0.00016116,2]
[408145542,1773173443081,-6029.74,0.00016116,2]
[408145543,1773173443090,-6594.12,0.00016116,2]
[408145544,1773173443099,-9999.99,0.00016116,2]
[408145545,1773173443108,-9999.99,0.00016116,2]
[408145546,1773173443117,-9999.99,0.00016116,2]
[408145547,1773173443126,-19999.99,0.00016116,2]
[408145548,1773173443136,-9950.63238939,0.000162,5]
[408145549,1773173443145,-2000.0,0.00016216,2]
[408145551,1773173443154,-2000.0,0.00016216,2]
[408145552,1773173443163,-1959.11608175,0.00016216,2]
[408145553,1773173443172,-1500.0,0.00016216,2]
[408145554,1773173443182,-622.62914275,0.00016216,2]
[408145556,1773173443190,-2000.0,0.00016316,2]
[408145558,1773173443200,-1910.9569044,0.00016316,2]
[408145560,1773173443209,-1039.08459465,0.00016316,2]
[408145562,1773173443218,-2000.0,0.00016316,2]
[408145564,1773173443228,-2125.59725555,0.00016316,2]
[408145566,1773173443236,-2000.0,0.00016316,2]
[408145568,1773173443246,-714.47247863,0.00016316,2]
[408145570,1773173443255,-2000.0,0.00016316,2]
[408145572,1773173443266,-671.63748537,0.00016316,2]
[408145573,1773173443276,-2000.0,0.00016316,2]
[408145574,1773173443285,-2000.0,0.00016316,2]
[408145575,1773173443295,-2000.0,0.00016316,2]
[408145576,1773173443305,-1828.83911274,0.00016316,2]
[408145577,1773173443313,-2000.0,0.00016316,2]
[408145578,1773173443322,-2000.0,0.00016316,2]
[408145579,1773173443331,-2000.0,0.00016316,2]
[408145580,1773173443340,-2000.0,0.00016316,2]
[408145581,1773173443350,-2000.0,0.00016316,2]
[408145582,1773173443360,-1755.30859165,0.00016316,2]
[408145583,1773173443369,-2000.0,0.00016316,2]
[408145584,1773173443379,-2000.0,0.00016316,2]
[408145585,1773173443388,-2000.0,0.00016316,2]
[408145586,1773173443398,-2000.0,0.00016316,2]
[408145587,1773173443407,-2000.0,0.00016316,2]
[408145588,1773173443416,-15450.50588442,0.00016388,2]
[408145589,1773173443425,-500.0,0.00016438,2]
[408145590,1773173443435,-500.0,0.00016438,2]
[408145591,1773173443444,-500.0,0.00016438,2]
[408145592,1773173443453,-500.0,0.00016438,2]
[408145593,1773173443462,-500.0,0.00016438,2]
[408145594,1773173443471,-500.0,0.00016438,2]
[408145595,1773173443480,-500.0,0.00016438,2]
[408145596,1773173443490,-500.0,0.00016438,2]
[408145597,1773173443499,-246.2,0.00016438,2]
[408145598,1773173443508,-246.34,0.0001647,2]
[408145599,1773173443517,-6163.28143983,0.0001648,2]
[408145600,1773173443526,-156.93,0.00016532,2]
[408145601,1773173443535,-166.66,0.0001663,2]
[408145602,1773173443544,-433.0,0.0001672,2]
[408145603,1773173443553,-314.49272081,0.0001672,2]
[408145604,1773173443562,-783.18830784,0.00016764,2]
[408145605,1773173443571,-2500.0,0.00016764,2]
[408145606,1773173443579,-15450.50588442,0.00016766,2]
[408145607,1773173443588,-5943.01687584,0.00016814,2]
[408145608,1773173443597,-1126.84,0.00016853,2]
[408145609,1773173443607,-1639.92342412,0.00016864,2]
[408145610,1773173443616,-2500.0,0.00016864,2]
[408145611,1773173443626,-726.86168835,0.00016864,2]
[408145612,1773173443636,-503.18464269,0.00016864,2]
[408145613,1773173443650,-2500.0,0.00016864,2]
[408145614,1773173443660,-2500.0,0.00016864,2]
[408145615,1773173443670,-1004.55487464,0.00016864,2]
[408145616,1773173443679,-2500.0,0.00016864,2]
[408145617,1773173443690,-2500.0,0.00016864,2]
[408145618,1773173443699,-665.26185461,0.00016864,2]
[408145619,1773173443709,-2500.0,0.00016864,2]
[408145620,1773173443720,-2500.0,0.00016864,2]
[408145621,1773173443729,-2500.0,0.00016864,2]
[408145622,1773173443739,-211.61428394,0.00016864,2]
[408145623,1773173443748,-2500.0,0.00016864,2]
[408145624,1773173443757,-2500.0,0.00016864,2]
[408145626,1773173443766,-1535.5208986,0.00016864,2]
[408145627,1773173443776,-500.0,0.0001693,2]
[408145628,1773173443785,-500.0,0.00016973,2]
[408145629,1773173443794,-500.0,0.00016973,2]
[408145630,1773173443803,-500.24925891,0.00016973,2]
[408145631,1773173443811,-165.86350306,0.00016973,2]
[408145632,1773173443820,-6163.28143983,0.00016974,2]
[408145633,1773173443829,-166.66,0.0001698,2]
[408145634,1773173443838,-577409.76914651,0.00017,2]
[408145635,1773173443847,-510.0,0.00017,2]
[408145636,1773173443856,-156.93,0.00017019,2]
[408145637,1773173443865,-54243.60633042,0.000171,2]
[408145638,1773173443874,-10960.6896483,0.0001711,2]
[408145639,1773173443884,-15450.50588442,0.00017144,2]
[408145640,1773173443892,-2000.0,0.00017162,2]
[408145641,1773173443902,-675.20290642,0.0001725,2]
[408145642,1773173443911,-161.2390476,0.0001725,2]
[408145643,1773173443920,-842.73671246,0.0001725,2]
[408145644,1773173443929,-388.66679332,0.0001725,2]
[408145645,1773173443938,-3000.0,0.00017312,2]
[408145646,1773173443947,-166.66,0.0001733,2]
[408145647,1773173443955,-1600.0,0.00017331,2]
[408145648,1773173443964,-1240.95278049,0.00017412,2]
[408145649,1773173443973,-564.55995824,0.00017412,2]
[408145650,1773173443982,-2285.67076732,0.00017412,2]
[408145651,1773173443991,-3000.0,0.00017412,2]
[408145652,1773173444000,-2094.83845957,0.00017412,2]
[408145653,1773173444010,-1214.55915429,0.00017412,2]
[408145654,1773173444019,-2556.08878516,0.00017412,2]
[408145655,1773173444028,-997.89893193,0.00017412,2]
[408145656,1773173444037,-3000.0,0.00017412,2]
[408145657,1773173444046,-3000.0,0.00017412,2]
[408145658,1773173444055,-6163.28143983,0.00017469,2]
[408145659,1773173444064,-156.93,0.00017505,2]
[408145660,1773173444073,-288.52,0.00017505,2]
[408145661,1773173444083,-5264.65,0.00017505,2]
[408145662,1773173444092,-3630.07,0.00017505,2]
[408145663,1773173444101,-1000.0,0.00017521,2]
[408145664,1773173444110,-1000.96095128,0.00017521,2]
[408145665,1773173444120,-15450.50588442,0.00017522,2]
[408145666,1773173444129,-5943.01687584,0.00017585,2]
[408145667,1773173444139,-166.66,0.0001768,2]
[408145668,1773173444148,-701.33501871,0.000177,2]
[408145669,1773173444157,-357.32,0.00017762,2]
[408145670,1773173444167,-314.49272081,0.0001778,2]
[408145671,1773173444176,-800.0,0.00017808,2]
[408145672,1773173444185,-357.33,0.00017834,2]
[408145673,1773173444194,-1007.12616149,0.0001786,2]
[408145674,1773173444204,-3500.0,0.0001786,2]
[408145675,1773173444213,-1228.83497507,0.0001789,2]
[408145676,1773173444223,-1076.79989794,0.0001789,2]
[408145677,1773173444233,-4749.22872573,0.0001789,2]
[408145678,1773173444241,-257.87725905,0.000179,2]
[408145679,1773173444250,-257.87725905,0.000179,2]
[408145680,1773173444260,-15450.50588442,0.000179,2]
[408145681,1773173444269,-968.22790649,0.00017912,2]
[408145682,1773173444279,-3170.0,0.00017953,2]
[408145683,1773173444288,-2541.42320536,0.0001796,2]
[408145684,1773173444297,-3500.0,0.0001796,2]
[408145685,1773173444307,-159.40499402,0.0001796,2]
[408145686,1773173444316,-6163.28143983,0.00017964,2]
[408145687,1773173444325,-7201.42441341,0.0001799,2]
[408145688,1773173444335,-151.0,0.00017997,2]
[408145689,1773173444345,-1516.0,0.00018,2]
[408145690,1773173444354,-1516.0,0.00018,2]
[408145691,1773173444364,-1516.0,0.00018,2]
[408145692,1773173444374,-1516.0,0.00018,2]
[408145693,1773173444384,-942.67941492,0.00018,2]
[408145694,1773173444393,-5004.90001375,0.00018,5]
[408145695,1773173444403,-65594.12178865,0.00018,2]
[408145696,1773173444412,-1033.7630252,0.00018,2]
[408145697,1773173444422,-308.80438942,0.00018,2]
[408145698,1773173444432,-1003.00365502,0.00018,2]
[408145699,1773173444442,-1516.0,0.00018,2]
[408145700,1773173444451,-736.0,0.00018029,2]
[408145701,1773173444461,-166.66,0.0001803,2]
[408145702,1773173444470,-1557.16695181,0.00018068,2]
[408145703,1773173444480,-161.37131775,0.00018073,2]
[408145704,1773173444489,-161.37131775,0.00018252,2]
[408145705,1773173444499,-1000.0,0.00018284,7]
[408145706,1773173444508,-5943.01687584,0.00018357,2]
[408145707,1773173444517,-510.0,0.0001837,3]
[408145708,1773173444526,-166.66,0.0001838,2]
[408145709,1773173444536,-4000.0,0.00018408,2]
[408145710,1773173444546,-161.37131775,0.00018431,2]
[408145711,1773173444555,-6163.28143983,0.00018459,2]
[408145712,1773173444565,-4000.0,0.00018508,2]
[408145713,1773173444574,-250.0,0.00018707,2]
[408145714,1773173444584,-151.0,0.00018736,2]
[408145715,1773173444593,-165.0,0.00018743,3]
[408145716,1773173444602,-500.0,0.00018815,2]
[408145717,1773173444612,-314.49272081,0.0001884,2]
[408145718,1773173444621,-2000.0,0.00018878,2]
[408145719,1773173444630,-160.0,0.00018913,2]
[408145720,1773173444640,-172.91703981,0.00018913,2]
[408145721,1773173444651,-6163.28143983,0.00018954,2]
[408145722,1773173444660,-1000.0,0.00018956,2]
[408145723,1773173444669,-424.139,0.00018999,2]
[408145724,1773173444680,-187.88530125,0.00018999,2]
[408145725,1773173444689,-250.0,0.00018999,2]
[408145726,1773173444698,-670.58624095,0.00018999,2]
[408145727,1773173444708,-1328.27659266,0.00018999,2]
[408145728,1773173444719,-500.0,0.00018999,2]
[408145729,1773173444729,-1500.0,0.00018999,2]
[408145730,1773173444738,-626.54460475,0.00018999,2]
[408145731,1773173444748,-1500.0,0.00018999,2]
[408145732,1773173444758,-1500.0,0.00018999,2]
[408145733,1773173444767,-1500.0,0.00018999,2]
[408145734,1773173444776,-500.0,0.00018999,2]
[408145735,1773173444786,-1500.0,0.00018999,2]
[408145736,1773173444795,-1500.0,0.00018999,2]
[408145737,1773173444804,-1500.0,0.00018999,2]
[408145738,1773173444813,-1500.0,0.00018999,2]
[408145739,1773173444823,-1500.0,0.00018999,2]
[408145740,1773173444832,-1500.0,0.00018999,2]
[408145741,1773173444841,-3000.0,0.00018999,2]
[408145742,1773173444851,-1500.0,0.00018999,2]
[408145743,1773173444860,-3000.0,0.00018999,2]
[408145744,1773173444870,-1500.0,0.00018999,2]
[408145745,1773173444879,-3000.0,0.00018999,2]
[408145746,1773173444889,-1500.0,0.00018999,2]
[408145747,1773173444899,-250.0,0.00018999,2]
[408145748,1773173444908,-3000.0,0.00018999,2]
[408145749,1773173444917,-1500.0,0.00018999,2]
[408145750,1773173444927,-3000.0,0.00018999,2]
[408145751,1773173444936,-1506.77280813,0.00018999,2]
[408145752,1773173444946,-3000.0,0.00018999,2]
[408145753,1773173444955,-3000.0,0.00018999,2]
[408145754,1773173444964,-3000.0,0.00018999,2]
[408145755,1773173444973,-3000.0,0.00018999,2]
[408145756,1773173444982,-3000.0,0.00018999,2]
[408145757,1773173444991,-3000.0,0.00018999,2]
[408145758,1773173445000,-3000.0,0.00018999,2]
[408145759,1773173445009,-3000.0,0.00018999,2]
[408145760,1773173445018,-151.0,0.00018999,2]
[408145761,1773173445028,-500.0,0.00018999,2]
[408145762,1773173445036,-1000.0,0.00018999,2]
[408145763,1773173445046,-200.0,0.00018999,2]
[408145764,1773173445055,-174.61919141,0.00018999,2]
[408145765,1773173445064,-644.79446245,0.00018999,2]
[408145766,1773173445073,-194.72792766,0.00018999,2]
[408145767,1773173445082,-1500.0,0.00018999,2]
[408145768,1773173445091,-1500.0,0.00018999,2]
[408145769,1773173445101,-1500.0,0.00018999,2]
[408145770,1773173445110,-1500.0,0.00018999,2]
[408145771,1773173445119,-1000.0,0.00018999,2]
[408145772,1773173445128,-262.90206542,0.00018999,2]
[408145773,1773173445138,-4190.0,0.00019,2]
[408145774,1773173445147,-21925.96350167,0.00019,2]
[408145775,1773173445156,-500.0,0.00019054,2]
[408145776,1773173445166,-151.0,0.00019054,2]
[408145777,1773173445176,-4500.0,0.00019056,2]
[408145778,1773173445186,-1600.0,0.00019064,2]
[408145779,1773173445195,-220.89067282,0.00019102,2]
[408145780,1773173445204,-153.75048617,0.00019102,2]
[408145781,1773173445214,-200.0,0.00019102,2]
[408145782,1773173445223,-150.0,0.00019102,2]
[408145783,1773173445233,-150.0,0.00019102,2]
[408145784,1773173445242,-500.0,0.00019102,2]
[408145785,1773173445251,-150.0,0.00019102,2]
[408145786,1773173445260,-500.0,0.00019102,2]
[408145787,1773173445270,-500.0,0.00019102,2]
[408145788,1773173445279,-500.0,0.00019102,2]
[408145789,1773173445288,-500.0,0.00019102,2]
[408145790,1773173445298,-150.0,0.00019102,2]
[408145791,1773173445307,-500.0,0.00019102,2]
[408145792,1773173445316,-150.0,0.00019102,2]
[408145793,1773173445326,-500.0,0.00019102,2]
[408145794,1773173445335,-500.0,0.00019102,2]
[408145795,1773173445344,-200.76649827,0.00019102,2]
[408145796,1773173445354,-500.0,0.00019109,2]
[408145797,1773173445363,-151.0,0.00019109,2]
[408145798,1773173445372,-5943.01687584,0.00019128,2]
[408145799,1773173445381,-1042.0,0.00019137,2]
[408145800,1773173445390,-1342.0,0.00019137,2]
[408145801,1773173445400,-922.0,0.00019137,2]
[408145802,1773173445662,-1213.0,0.00019137,2]
[408145803,1773173445672,-5995.0,0.00019137,2]
[408145804,1773173445681,-2461.0,0.00019137,2]
[408145805,1773173445691,-150.0,0.00019157,2]
[408145806,1773173445700,-500.0,0.00019157,2]
[408145807,1773173445710,-150.0,0.00019157,2]
[408145808,1773173445721,-500.0,0.00019157,2]
[408145809,1773173445731,-500.0,0.00019157,2]
[408145810,1773173445740,-500.0,0.00019157,2]
[408145811,1773173445750,-552.49408871,0.00019157,2]
[408145812,1773173445759,-150.0,0.00019157,2]
[408145813,1773173445768,-500.0,0.00019157,2]
[408145814,1773173445777,-150.0,0.00019157,2]
[408145815,1773173445786,-600.0,0.00019157,2]
[408145816,1773173445795,-500.0,0.00019157,2]
[408145817,1773173445804,-500.0,0.00019164,2]
[408145818,1773173445813,-151.0,0.00019164,2]
[408145819,1773173445823,-3000.0,0.00019178,2]
[408145820,1773173445832,-3000.0,0.00019178,2]
[408145821,1773173445841,-3000.0,0.00019178,2]
[408145822,1773173445850,-787.0,0.00019178,2]
[408145823,1773173445859,-558.0,0.00019178,2]
[408145824,1773173445868,-150.0,0.00019178,2]
[408145825,1773173445878,-150.0,0.00019178,2]
[408145826,1773173445887,-2000.0,0.000192,2]
[408145827,1773173445896,-500.0,0.00019212,2]
[408145828,1773173445905,-150.0,0.00019212,2]
[408145829,1773173445914,-500.0,0.00019212,2]
[408145830,1773173445923,-500.0,0.00019212,2]
[408145831,1773173445932,-500.0,0.00019212,2]
[408145832,1773173445942,-150.0,0.00019212,2]
[408145833,1773173445951,-500.0,0.00019212,2]
[408145834,1773173445961,-150.0,0.00019212,2]
[408145835,1773173445971,-500.0,0.00019212,2]
[408145836,1773173445980,-500.0,0.00019219,2]
[408145837,1773173445990,-151.0,0.00019219,2]
[408145838,1773173446001,-170.962384,0.0001922,2]
[408145839,1773173446012,-299.95430794,0.00019261,2]
[408145840,1773173446022,-500.0,0.00019266,2]
[408145841,1773173446032,-200.0,0.00019266,2]
[408145842,1773173446041,-204.83861542,0.00019266,2]
[408145843,1773173446051,-500.0,0.00019266,2]
[408145844,1773173446060,-500.0,0.00019266,2]
[408145845,1773173446070,-150.0,0.00019266,2]
[408145846,1773173446079,-500.0,0.00019266,2]
[408145847,1773173446090,-150.0,0.00019266,2]
[408145848,1773173446099,-500.0,0.00019266,2]
[408145849,1773173446108,-500.0,0.00019274,2]
[408145850,1773173446118,-151.0,0.00019274,2]
[408145851,1773173446128,-1000.0,0.00019274,2]
[408145852,1773173446138,-781.59,0.00019311,2]
[408145853,1773173446148,-500.0,0.00019321,2]
[408145854,1773173446158,-250.0,0.00019321,2]
[408145855,1773173446168,-500.0,0.00019321,2]
[408145856,1773173446178,-150.0,0.00019321,2]
[408145857,1773173446188,-500.0,0.00019321,2]
[408145858,1773173446197,-150.0,0.00019321,2]
[408145859,1773173446207,-508.22060755,0.00019321,2]
[408145860,1773173446217,-500.0,0.00019329,2]
[408145861,1773173446226,-151.0,0.00019329,2]
[408145862,1773173446236,-168.0,0.00019338,2]
[408145863,1773173446246,-592.0,0.00019376,2]
[408145864,1773173446256,-150.0,0.00019376,2]
[408145865,1773173446266,-150.0,0.00019376,2]
[408145866,1773173446276,-150.0,0.00019376,2]
[408145867,1773173446285,-201.0,0.00019376,2]
[408145868,1773173446295,-500.0,0.00019376,2]
[408145869,1773173446305,-535.61378813,0.00019376,2]
[408145870,1773173446315,-250.0,0.00019376,2]
[408145871,1773173446324,-500.0,0.00019376,2]
[408145872,1773173446334,-250.0,0.00019376,2]
[408145873,1773173446344,-500.0,0.00019384,2]
[408145874,1773173446353,-151.0,0.00019384,2]
[408145875,1773173446362,-350.0,0.00019397,2]
[408145876,1773173446372,-1300.0,0.000194,7]
[408145877,1773173446382,-1252.0,0.00019425,2]
[408145878,1773173446391,-500.0,0.00019431,2]
[408145879,1773173446401,-500.0,0.00019431,2]
[408145880,1773173446410,-500.0,0.00019439,2]
[408145881,1773173446419,-151.0,0.00019439,2]
[408145882,1773173446429,-268.96748512,0.00019452,2]
[408145883,1773173446438,-346.46936844,0.00019486,2]
[408145884,1773173446448,-326.0,0.00019486,2]
[408145886,1773173446457,-500.0,0.00019494,2]
[408145888,1773173446466,-151.0,0.00019494,2]
[408145889,1773173446476,-1300.0,0.000195,7]
[408145890,1773173446485,-300.0,0.00019547,2]
[408145891,1773173446494,-181.08010149,0.00019547,2]
[408145892,1773173446503,-243.08739965,0.00019547,2]
[408145893,1773173446512,-1000.0,0.00019548,2]
[408145894,1773173446522,-500.0,0.00019549,2]
[408145895,1773173446531,-151.0,0.00019549,2]
[408145896,1773173446541,-1000.0,0.00019552,2]
[408145897,1773173446550,-781.59,0.00019585,2]
[408145898,1773173446560,-168.0,0.00019594,2]
[408145899,1773173446569,-500.0,0.00019599,2]
[408145900,1773173446578,-240.36,0.000196,2]
[408145901,1773173446587,-1436.70614573,0.000196,5]
[408145902,1773173446596,-1428.35284987,0.000196,2]
[408145903,1773173446605,-190.16,0.000196,2]
[408145904,1773173446614,-292.21,0.000196,30]
[408145905,1773173446624,-1300.0,0.000196,7]
[408145906,1773173446633,-500.0,0.00019604,2]
[408145907,1773173446644,-151.0,0.00019604,2]
[408145908,1773173446653,-854.92103429,0.00019604,2]
[408145909,1773173446663,-153.36839608,0.00019609,2]
[408145910,1773173446672,-1000.0,0.00019624,2]
[408145911,1773173446682,-250.0,0.00019629,2]
[408145912,1773173446691,-250.0,0.00019642,2]
[408145913,1773173446700,-500.0,0.00019659,2]
[408145914,1773173446709,-151.0,0.00019659,2]
[408145915,1773173446720,-250.0,0.00019666,2]
[408145916,1773173446729,-1000.0,0.00019671,2]
[408145917,1773173446739,-168.0,0.00019689,2]
[408145918,1773173446748,-150.0,0.00019693,2]
[408145919,1773173446758,-250.0,0.000197,2]
[408145920,1773173446767,-1300.0,0.000197,7]
[408145921,1773173446776,-168.0,0.00019713,2]
[408145922,1773173446785,-168.0,0.00019723,2]
[408145923,1773173446794,-250.0,0.00019726,2]
[408145924,1773173446803,-500.0,0.00019726,2]
[408145925,1773173446813,-500.0,0.00019726,2]
[408145926,1773173446822,-524.54846384,0.00019726,2]
[408145927,1773173446831,-500.0,0.00019726,2]
[408145928,1773173446841,-439.8301473,0.00019726,2]
[408145929,1773173446851,-1766.57,0.00019726,2]
[408145930,1773173446860,-1766.57,0.00019726,2]
[408145931,1773173446869,-1766.57,0.00019726,2]
[408145932,1773173446879,-1766.57,0.00019726,2]
[408145933,1773173446888,-1766.57,0.00019726,2]
[408145934,1773173446897,-1766.57,0.00019726,2]
[408145935,1773173446908,-1766.57,0.00019726,2]
[408145936,1773173446917,-1766.57,0.00019726,2]
[408145937,1773173446926,-1766.57,0.00019726,2]
[408145938,1773173446936,-1766.57,0.00019726,2]
[408145939,1773173446945,-1766.57,0.00019726,2]
[408145940,1773173446954,-1766.57,0.00019726,2]
[408145941,1773173446963,-1766.57,0.00019726,2]
[408145942,1773173446972,-1766.57,0.00019726,2]
[408145943,1773173446981,-1766.57,0.00019726,2]
[408145944,1773173446990,-1766.57,0.00019726,2]
[408145945,1773173446999,-1766.57,0.00019726,2]
[408145946,1773173447008,-1766.57,0.00019726,2]
[408145947,1773173447017,-1766.57,0.00019726,2]
[408145948,1773173447027,-1766.57,0.00019726,2]
[408145949,1773173447036,-1766.57,0.00019726,2]
[408145950,1773173447046,-1766.57,0.00019726,2]
[408145951,1773173447055,-1766.57,0.00019726,2]
[408145952,1773173447064,-1766.78298099,0.00019726,2]
[408145953,1773173447074,-625.37,0.00019726,2]
[408145954,1773173447085,-250.0,0.00019726,2]
[408145955,1773173447096,-250.0,0.00019726,2]
[408145956,1773173447105,-168.0,0.00019732,2]
[408145957,1773173447114,-510.0,0.00019739,4]
[408145958,1773173447123,-250.0,0.00019756,2]
[408145959,1773173447132,-250.0,0.00019768,2]
[408145960,1773173447142,-624.2341,0.000198,2]
[408145961,1773173447152,-624.2341,0.000198,2]
[408145962,1773173447162,-1641.0,0.000198,7]
[408145963,1773173447171,-2627.0,0.000198,2]
[408145964,1773173447180,-250.0,0.000198,2]
[408145965,1773173447190,-250.0,0.00019822,2]
[408145966,1773173447200,-1000.0,0.00019822,2]
[408145967,1773173447210,-350.0,0.00019843,2]
[408145968,1773173447219,-781.59,0.00019859,2]
[408145969,1773173447230,-250.0,0.00019864,2]
[408145970,1773173447241,-10000.0,0.0001988,2]
[408145971,1773173447250,-25000.0,0.00019891,3]
[408145972,1773173447260,-500.0,0.00019899,2]
[408145973,1773173447269,-500.0,0.00019899,2]
[408145974,1773173447279,-500.0,0.00019899,2]
[408145975,1773173447289,-203.0,0.00019899,2]
[408145976,1773173447299,-500.0,0.00019899,2]
[408145977,1773173447308,-500.0,0.00019899,2]